bitfinex-derivatives/quotes_ETHF0:USTF0_20251220
["timestamp","ask_amount","ask_price","bid_price","bid_amount"]
[1766244597901,0.00272358,2974.3,2973.6,2.68176116]
[1766244598104,0.00272358,2974.3,2973.8,2.68176116]
[1766244598306,3.363,2974.5,2973.8,6.04476116]
[1766244598507,3.363,2974.5,2973.8,3.363]
[1766244599402,3.36687393,2974.5,2973.8,3.363]
[1766244602010,0.00387393,2974.5,2973.8,3.363]
[1766244602209,3.36687393,2974.5,2973.8,3.363]
[1766244603910,3.363,2975.1,2974.3,2.68176116]
[1766244604209,3.363,2975.1,2974.5,2.68176116]
[1766244604598,0.07803047,2975.4,2974.5,2.68176116]
[1766244604801,3.363,2975.3,2974.7,2.68680461]
[1766244605004,3.363,2975.3,2974.7,0.00504345]
[1766244605404,0.00271494,2975.4,2974.7,2.68680461]
[1766244605609,3.36571494,2975.4,2974.7,0.00504345]
[1766244605907,3.36571494,2975.4,2974.7,2.68680461]
[1766244606209,3.36571494,2975.4,2974.7,0.00504345]
[1766244607107,3.36571494,2975.4,2974.7,2.68680461]
[1766244607309,0.00271494,2975.4,2974.7,0.00504345]
[1766244608405,0.00271494,2975.4,2974.8,2.68176116]
[1766244608812,0.00271494,2975.4,2974.9,3.363]
[1766244613110,2.68176116,2975.3,2974.7,0.00504345]
[1766244613310,2.68176116,2975.1,2974.7,0.00504345]
[1766244613714,6.04376116,2975.3,2974.7,0.00504345]
[1766244615214,2.68176116,2975.1,2974.7,0.00504345]
[1766244617411,3.362,2975.0,2974.7,4.345e-05]
[1766244617620,3.362,2975.0,2974.5,0.00330819]
[1766244618611,3.36704345,2975.0,2974.5,0.00835164]
[1766244620620,6.04722147,2975.0,2974.5,0.00835164]
[1766244635138,2.68017802,2974.9,2974.5,0.00835164]
[1766244635532,3.36704345,2975.0,2974.5,0.00835164]
[1766244636836,3.36704345,2975.0,2974.2,3.362]
[1766244638044,3.36704345,2975.0,2974.3,0.00504345]
[1766244640246,3.36704345,2975.0,2974.3,4.345e-05]
[1766244641346,2.68047657,2974.8,2973.9,3.362]
[1766244641543,3.362,2974.7,2973.9,3.362]
[1766244642244,3.362,2974.7,2974.0,0.00504345]
[1766244644451,3.362,2974.7,2974.0,4.345e-05]
[1766244657564,6.0431596,2974.7,2974.0,4.345e-05]
[1766244671271,3.362,2974.7,2973.3,3.0187456]
[1766244671467,3.362,2974.7,2973.1,3.363]
[1766244671468,2.6811596,2974.3,2973.4,3.363]
[1766244671772,3.363,2974.2,2973.5,3.363]
[1766244672171,3.363,2974.2,2973.6,0.00504345]
[1766244690692,2.6811596,2974.8,2973.6,0.00504345]
[1766244690994,17.693,2974.7,2973.6,0.00504345]
[1766244697399,2.6808977,2974.6,2973.6,0.00504345]
[1766244699296,17.693,2974.7,2973.6,2.68594115]
[1766244704806,2.6808977,2974.6,2973.6,2.68594115]
[1766244705713,2.6808977,2974.6,2973.6,0.00504345]
[1766244710310,20.3738977,2974.7,2973.6,0.00504345]
[1766244712514,17.693,2974.7,2973.6,2.68594115]
[1766244714321,9.285,2974.7,2973.6,2.68594115]
[1766244723822,9.285,2974.7,2973.6,0.00504345]
[1766244724022,2.6808977,2974.5,2973.6,0.00504345]
[1766244725217,9.285,2974.7,2973.6,0.00504345]
[1766244725418,2.6808977,2974.5,2973.6,0.00504345]
[1766244726921,2.6808977,2974.5,2973.7,3.363]
[1766244730931,2.68078083,2974.6,2973.7,3.363]
[1766244731931,3.363,2974.5,2973.7,3.363]
[1766244732132,3.363,2974.5,2973.7,6.04378083]
[1766244734233,3.363,2974.5,2973.7,3.363]
[1766244753643,2.68078083,2974.9,2973.7,3.363]
[1766244753843,3.363,2974.8,2973.7,3.363]
[1766244754743,3.363,2974.8,2973.7,6.04378083]
[1766244755646,3.363,2974.8,2973.9,2.68078083]
[1766244755847,3.363,2974.8,2974.0,3.363]
[1766244757246,0.00504345,2975.0,2974.1,2.68078083]
[1766244757451,0.00504345,2975.0,2974.0,3.363]
[1766244782882,3.36704345,2975.0,2974.0,3.363]
[1766244788281,0.00504345,2975.0,2974.0,3.363]
[1766244808092,3.36704345,2975.0,2974.0,3.363]
[1766244813205,3.36704345,2975.0,2974.1,3.362]
[1766244816907,0.00504345,2975.0,2974.1,3.362]
[1766244820506,0.00504345,2975.0,2974.2,2.67973803]
[1766244820710,3.362,2975.3,2974.2,2.67973803]
[1766244821814,0.00504345,2975.0,2974.2,2.67973803]
[1766244822808,2.68245297,2975.4,2974.2,2.67973803]
[1766244823008,3.362,2975.3,2974.2,2.67973803]
[1766244823927,0.00504345,2975.0,2974.2,2.67973803]
[1766244824408,3.362,2975.3,2974.2,2.67973803]
[1766244824812,0.00271494,2975.4,2974.6,2.67973803]
[1766244825015,0.00271494,2975.4,2974.7,3.362]
[1766244825411,0.00504345,2975.3,2974.7,3.362]
[1766244825613,1.494e-05,2975.4,2974.7,3.362]
[1766244829223,1.494e-05,2975.4,2975.0,2.67973803]
[1766244829423,1.494e-05,2975.4,2975.1,3.362]
[1766244837518,3.36020233,2975.8,2975.1,3.362]
[1766244837724,3.36020233,2975.8,2975.2,0.00504345]
[1766244838530,3.36255993,2975.8,2975.2,0.00504345]
[1766244843434,3.3633576,2975.8,2975.2,0.00504345]
[1766244853838,2.67847206,2975.7,2975.2,4.345e-05]
[1766244854040,3.3633576,2975.8,2975.2,4.345e-05]
[1766244854841,3.36838026,2975.8,2975.2,4.345e-05]
[1766244857542,0.00738026,2975.8,2975.2,4.345e-05]
[1766244888275,3.36838026,2975.8,2974.7,3.0187456]
[1766244888579,3.36838026,2975.8,2974.9,3.361]
[1766244889274,3.36838026,2975.8,2975.1,0.00504345]
[1766244891481,3.36838026,2975.8,2975.0,3.361]
[1766244892380,3.36838026,2975.8,2975.1,0.00504345]
[1766244892776,0.00738026,2975.8,2975.1,0.00504345]
[1766244892977,0.00738026,2975.8,2975.3,2.67813936]
[1766244893179,0.00738026,2975.8,2975.4,3.361]
[1766244902088,6.03913936,2976.5,2975.4,3.361]
[1766244903081,0.00504345,2976.2,2975.2,3.302]
[1766244903275,0.00504345,2976.2,2975.3,3.361]
[1766244907384,0.00504345,2976.2,2975.3,6.03913936]
[1766244908282,0.0039659,2976.5,2975.3,6.03913936]
[1766244910882,0.0039659,2976.5,2975.3,3.361]
[1766244913486,2.67813936,2976.2,2975.1,0.00504345]
[1766244913693,3.36,2976.3,2975.2,3.36]
[1766244915094,3.36,2976.3,2975.3,3.36]
[1766244915593,6.038184,2976.3,2975.3,3.36]
[1766244922995,2.678184,2976.0,2975.3,3.2156]
[1766244923195,3.361,2975.9,2975.3,3.2156]
[1766244925993,2.678184,2975.7,2975.3,3.2156]
[1766244928916,2.678184,2975.7,2975.1,0.00504345]
[1766244929205,6.039184,2975.9,2975.1,0.00504345]
[1766244941420,2.67896233,2975.6,2975.1,0.00504345]
[1766244941619,6.03996233,2975.6,2975.1,0.00504345]
[1766244952032,3.361,2975.6,2975.1,0.00504345]
[1766244957140,2.67884991,2975.7,2975.1,0.00504345]
[1766244957341,6.03984991,2975.7,2975.1,0.00504345]
[1766244959540,5.13403115,2975.7,2975.1,0.00504345]
[1766244961042,3.361,2975.7,2975.1,0.00504345]
[1766244961343,2.67884991,2976.0,2975.2,3.361]
[1766244961544,3.361,2975.9,2975.2,3.361]
[1766244963141,2.67884991,2975.8,2975.2,3.361]
[1766244968646,6.03984991,2975.8,2975.2,3.361]
[1766244971755,3.361,2975.8,2975.2,3.361]
[1766244986373,2.67884991,2975.9,2975.2,3.361]
[1766244986568,3.361,2975.9,2975.2,3.361]
[1766245016700,2.67822332,2976.3,2975.2,3.361]
[1766245016898,3.361,2976.2,2975.2,3.361]
[1766245023712,0.0039659,2976.5,2975.2,3.361]
[1766245024208,3.361,2976.4,2975.2,3.361]
[1766245030713,3.361,2976.3,2975.2,3.361]
[1766245031306,3.361,2976.3,2975.1,0.00504345]
[1766245031818,2.67778746,2976.0,2975.2,3.361]
[1766245032011,6.03878746,2976.0,2975.2,3.361]
[1766245035922,3.361,2976.0,2975.2,3.361]
[1766245044221,3.361,2976.0,2975.1,0.00504345]
[1766245047429,2.67778746,2975.8,2975.1,0.00504345]
[1766245047729,3.361,2975.7,2975.1,0.00504345]
[1766245061635,2.67924338,2975.6,2975.1,0.00504345]
[1766245062234,2.67924338,2975.4,2975.1,0.00504345]
[1766245062433,6.04024338,2975.4,2975.1,0.00504345]
[1766245064233,3.361,2975.4,2975.1,0.00504345]
[1766245067548,2.67924338,2975.3,2975.1,0.00504345]
[1766245068649,2.67924338,2975.3,2974.6,3.361]
[1766245069550,2.67924338,2975.1,2974.6,3.361]
[1766245069751,6.04024338,2975.1,2974.7,0.00504345]
[1766245071149,3.361,2975.1,2974.7,0.00504345]
[1766245082058,3.362,2975.1,2974.7,0.00504345]
[1766245084567,0.00504345,2975.5,2974.7,0.00504345]
[1766245084766,3.362,2975.4,2974.7,0.00504345]
[1766245088866,6.04124338,2975.4,2974.7,0.00504345]
[1766245096577,3.362,2975.3,2974.7,0.00504345]
[1766245113886,3.362,2975.2,2974.7,0.00504345]
[1766245114891,0.00504345,2975.5,2974.7,0.00504345]
[1766245115092,3.362,2975.4,2974.7,0.00504345]
[1766245120991,0.00504345,2975.5,2974.7,0.00504345]
[1766245121195,3.362,2975.3,2974.7,0.00504345]
[1766245195354,2.951,2975.2,2974.7,0.00504345]
[1766245212882,3.362,2975.1,2974.7,0.00504345]
[1766245220189,6.04150427,2975.1,2974.7,0.00504345]
[1766245243607,6.04216053,2975.1,2974.7,0.00504345]
[1766245246813,6.04216053,2975.1,2974.2,6.194]
[1766245246814,2.68016053,2974.9,2974.2,6.194]
[1766245247113,2.951,2974.8,2974.2,6.194]
[1766245247713,2.951,2974.8,2974.2,6.19904345]
[1766245248014,6.313,2974.8,2974.2,6.19904345]
[1766245248316,0.00504345,2975.5,2974.3,2.68020939]
[1766245248915,3.552,2975.4,2974.3,2.68020939]
[1766245249906,0.00504345,2975.5,2974.6,2.68020939]
[1766245250113,0.00504345,2975.5,2974.7,3.362]
[1766245260514,0.00504345,2975.5,2974.7,6.04220939]
[1766245277323,3.361,2975.6,2974.7,6.04220939]
[1766245277724,3.361,2975.7,2975.0,2.68020939]
[1766245277929,3.361,2975.7,2975.0,6.04120939]
[1766245278321,0.00504345,2975.6,2975.0,6.04120939]
[1766245280031,0.00504345,2975.6,2975.0,3.361]
[1766245280833,0.00504345,2975.6,2975.2,2.67825412]
[1766245282434,0.0039659,2976.5,2975.5,2.67825412]
[1766245282730,0.0039659,2976.5,2975.6,3.361]
[1766245282731,3.3649659,2976.5,2975.6,3.361]
[1766245282934,0.0039659,2976.5,2976.1,2.67825412]
[1766245283141,0.07001587,2976.6,2976.1,2.67825412]
[1766245283329,0.07001587,2976.6,2976.1,2.68329757]
[1766245284038,0.07279888,2976.6,2976.1,2.68329757]
[1766245286037,0.07279888,2976.6,2976.1,0.00504345]
[1766245287740,3.361,2976.9,2976.2,3.361]
[1766245288839,3.36424466,2976.9,2976.2,3.361]
[1766245289531,0.00324466,2976.9,2976.2,3.361]
[1766245289728,3.36424466,2976.9,2976.2,3.361]
[1766245291634,0.00324466,2976.9,2976.2,3.361]
[1766245293029,3.36,2977.1,2976.2,3.361]
[1766245294033,3.36415687,2977.1,2976.2,3.361]
[1766245294736,3.36415687,2977.1,2976.2,6.03925412]
[1766245296141,3.36415687,2977.1,2976.2,3.361]
[1766245296337,3.36415687,2977.1,2976.2,6.03925412]
[1766245297541,3.36415687,2977.1,2976.2,3.361]
[1766245297738,6.04241099,2977.1,2976.2,3.361]
[1766245297937,2.67825412,2976.8,2975.8,3.36]
[1766245298142,3.36,2976.7,2975.8,3.36]
[1766245298439,3.36,2976.6,2975.8,3.36]
[1766245298643,3.36,2976.5,2975.8,3.36]
[1766245298854,3.36,2976.4,2975.8,3.36]
[1766245299142,0.00504345,2976.4,2975.8,3.36504345]
[1766245299347,3.36504345,2976.4,2975.8,3.36504345]
[1766245304055,0.00504345,2976.4,2975.8,3.36504345]
[1766245304441,4.345e-05,2976.4,2975.8,3.36504345]
[1766245309453,4.345e-05,2976.4,2975.8,6.04198164]
[1766245312042,4.345e-05,2976.4,2976.0,2.67693819]
[1766245314555,4.345e-05,2976.4,2976.2,2.67693819]
[1766245315558,4.345e-05,2976.4,2976.1,3.36]
[1766245330665,4.345e-05,2976.4,2975.8,3.36504345]
[1766245335360,3.36004345,2976.4,2975.8,3.36504345]
[1766245350074,3.36004345,2976.4,2975.9,2.67648069]
[1766245350276,3.36,2976.5,2975.9,2.67648069]
[1766245351370,3.36,2976.5,2975.8,3.36504345]
[1766245351772,0.00415687,2977.1,2975.8,3.36504345]
[1766245351976,2.947,2976.8,2975.8,3.36504345]
[1766245352180,3.36,2976.7,2975.8,3.36504345]
[1766245353177,6.03712757,2976.7,2975.8,3.36504345]
[1766245364589,3.36,2976.7,2975.8,3.36504345]
[1766245382808,2.67744849,2976.9,2975.8,3.36504345]
[1766245383002,6.307,2976.8,2975.8,3.36504345]
[1766245383309,6.2337,2976.7,2975.9,2.67744849]
[1766245383507,4.5898,2976.7,2975.9,2.67744849]
[1766245383704,1.1574,2976.7,2975.9,2.67744849]
[1766245384798,1.1574,2976.7,2975.8,6.04249194]
[1766245388314,1.1574,2976.7,2975.8,3.36504345]
[1766245389906,2.68111475,2977.1,2975.8,3.36504345]
[1766245390109,6.306,2977.0,2975.8,3.36504345]
[1766245390309,6.306,2976.9,2975.8,3.36504345]
[1766245411033,6.306,2976.8,2975.8,3.36504345]
[1766245411735,2.68111475,2977.1,2975.8,3.36504345]
[1766245412037,14.707,2977.0,2975.8,3.36504345]
[1766245412225,14.707,2977.0,2975.8,6.04200133]
[1766245412624,0.00415687,2977.1,2975.8,6.04200133]
[1766245412836,6.306,2977.0,2975.8,6.04200133]
[1766245424239,6.306,2977.0,2975.8,6.04155024]
[1766245424941,6.306,2977.0,2975.8,3.36504345]
[1766245429455,6.306,2977.0,2975.9,2.67666102]
[1766245435050,6.306,2977.0,2976.1,2.67666102]
[1766245435256,6.305,2976.9,2976.1,2.67666102]
[1766245435846,6.305,2976.9,2975.8,6.04170447]
[1766245444267,2.67666102,2976.8,2975.8,3.36504345]
[1766245445266,2.67666102,2976.8,2975.8,6.04170447]
[1766245446071,3.36,2976.7,2975.8,6.04170447]
[1766245449672,3.36,2976.7,2975.8,3.36504345]
[1766245450773,3.36,2976.7,2975.8,0.00504345]
[1766245450968,2.67666102,2976.4,2975.8,0.00504345]
[1766245451173,3.36,2976.3,2975.8,0.00504345]
[1766245458183,0.00415687,2977.1,2975.8,2.68170447]
[1766245458482,2.67666102,2976.9,2975.8,2.68170447]
[1766245460183,2.67666102,2976.9,2975.8,6.04170447]
[1766245460581,2.67699422,2976.9,2975.8,3.36504345]
[1766245465280,2.67699422,2976.7,2975.8,3.36504345]
[1766245465481,3.36,2976.6,2975.8,3.36504345]
[1766245478091,0.00415687,2977.1,2975.8,3.36504345]
[1766245478386,2.945,2976.8,2975.8,3.36504345]
[1766245478591,3.36,2976.7,2975.9,2.67699422]
[1766245480595,3.36,2976.7,2975.8,3.36504345]
[1766245484799,2.67699422,2976.6,2975.8,3.36504345]
[1766245488689,3.36,2976.5,2975.8,3.36504345]
[1766245494600,0.00415687,2977.1,2975.8,3.36504345]
[1766245494908,2.944,2976.9,2975.8,3.36504345]
[1766245502412,3.36,2976.8,2975.8,3.36504345]
[1766245513428,0.00415687,2977.1,2975.8,3.36504345]
[1766245513628,3.36,2977.0,2975.8,3.36504345]
[1766245515028,2.67686493,2976.9,2975.8,3.36504345]
[1766245518534,6.03686493,2977.0,2975.8,3.36504345]
[1766245535059,6.03708591,2977.0,2975.8,3.36504345]
[1766245547254,14.43808591,2977.0,2975.8,3.36504345]
[1766245553363,2.67709627,2976.7,2975.8,3.36504345]
[1766245553558,6.303,2976.6,2975.8,3.36504345]
[1766245582081,8.98016207,2976.6,2975.8,3.36504345]
[1766245583884,2.67716207,2976.4,2975.8,3.36504345]
[1766245584180,3.36,2976.3,2975.8,3.36504345]
[1766245616725,3.36,2976.3,2975.8,0.00504345]
[1766245636057,0.168,2977.4,2975.8,0.00504345]
[1766245636248,14.703,2977.0,2975.8,0.00504345]
[1766245637152,2.67759047,2976.8,2975.8,0.00504345]
[1766245637353,3.36,2976.7,2975.8,0.00504345]
[1766245637554,2.942,2976.6,2975.8,0.00504345]
[1766245638855,3.36,2976.5,2975.8,3.36504345]
[1766245639047,2.942,2976.6,2975.8,3.36504345]
[1766245639248,3.36,2976.5,2975.8,3.36504345]
[1766245646860,2.67705169,2977.0,2975.8,3.36504345]
[1766245647061,4.837,2976.9,2975.8,3.36504345]
[1766245651862,6.301,2976.8,2975.8,3.36504345]
[1766245663477,2.67705169,2977.0,2975.8,3.36504345]
[1766245663680,6.301,2976.9,2975.8,3.36504345]
[1766245663977,6.301,2976.8,2975.8,3.36504345]
[1766245664373,3.36,2976.7,2975.8,3.36504345]
[1766245665882,0.00415687,2977.1,2975.8,3.36504345]
[1766245666179,6.301,2977.0,2975.8,3.36504345]
[1766245666574,0.00415687,2977.1,2975.8,3.36504345]
[1766245666781,6.301,2977.0,2975.8,3.36504345]
[1766245667576,0.00415687,2977.1,2975.8,3.36504345]
[1766245667782,6.301,2976.9,2975.8,3.36504345]
[1766245675401,6.301,2976.9,2975.8,6.04166758]
[1766245679697,6.301,2976.9,2975.8,6.04166124]
[1766245680495,6.301,2976.9,2975.8,3.36504345]
[1766245680686,2.67661779,2976.7,2975.8,3.36504345]
[1766245680888,3.36,2976.6,2975.8,3.36504345]
[1766245682903,3.36,2976.6,2975.8,6.04166124]
[1766245702011,3.36,2976.6,2975.8,8.95366124]
[1766245710023,3.36,2976.6,2975.8,6.27704345]
[1766245713020,2.67661779,2976.8,2975.8,6.27704345]
[1766245713223,3.36,2976.7,2975.8,6.27704345]
[1766245721834,2.67693476,2976.6,2975.8,6.27704345]
[1766245723231,3.36,2976.7,2975.8,6.27704345]
[1766245738650,3.36,2976.7,2975.8,0.00504345]
[1766245740258,2.68107792,2977.1,2975.8,0.00504345]
[1766245740453,5.831,2977.0,2975.8,0.00504345]
[1766245742556,2.68107792,2977.1,2975.8,0.00504345]
[1766245742749,4.176,2977.0,2975.8,0.00504345]
[1766245750678,2.67692105,2976.8,2975.8,0.00504345]
[1766245750962,3.36,2976.7,2975.8,0.00504345]
[1766245754665,3.36,2976.7,2975.9,3.36]
[1766245765473,2.94,2976.6,2975.9,3.36]
[1766245769071,3.36,2976.5,2975.9,3.36]
[1766245776792,0.00415687,2977.1,2976.3,2.67718919]
[1766245776988,0.00415687,2977.1,2976.4,3.36]
[1766245785598,0.00415687,2977.1,2975.8,0.00504345]
[1766245785599,3.36,2977.0,2975.8,0.00504345]
[1766245785897,3.36,2977.0,2975.9,6.188]
[1766245795609,3.36,2977.0,2975.9,8.86438725]
[1766245795610,6.03638725,2977.0,2975.9,8.86438725]
[1766245798214,6.03638725,2977.0,2975.9,6.188]
[1766245801616,3.36,2977.0,2975.9,6.188]
[1766245801818,6.03638725,2977.0,2975.9,6.188]
[1766245813631,2.67638725,2976.8,2975.9,6.188]
[1766245820235,2.67638725,2976.5,2975.8,0.00504345]
[1766245820427,6.03638725,2976.5,2975.8,3.36504345]
[1766245821134,3.36,2976.5,2975.8,3.36504345]
[1766245828736,2.67720495,2976.8,2975.8,3.36504345]
[1766245828938,3.36,2976.7,2975.8,3.36504345]
[1766245829539,2.67720495,2976.8,2975.8,3.36504345]
[1766245829730,3.36,2976.7,2975.8,3.36504345]
[1766245830439,2.67720495,2976.8,2975.8,3.36504345]
[1766245830642,3.36,2976.7,2975.8,3.36504345]
[1766245830842,2.67720495,2976.8,2975.8,3.36504345]
[1766245831036,3.36,2976.7,2975.8,3.36504345]
[1766245839057,0.00415687,2977.1,2975.9,2.67720495]
[1766245839343,8.97520495,2977.0,2975.8,3.36504345]
[1766245841343,8.97520495,2977.0,2975.9,2.67720495]
[1766245841540,0.00415687,2977.1,2976.6,2.67720495]
[1766245841845,0.00415687,2977.1,2976.6,3.36]
[1766245844160,0.00415687,2977.1,2976.6,6.03720495]
[1766245845644,2.67720495,2977.6,2976.6,6.03720495]
[1766245845645,9.02600668,2978.6,2977.0,2.67720495]
[1766245845851,2.67720495,2978.0,2977.5,0.00504345]
[1766245846151,3.36,2977.9,2977.5,4.345e-05]
[1766245846543,0.00265991,2977.9,2977.5,4.345e-05]
[1766245846742,6.03720495,2978.3,2977.5,4.345e-05]
[1766245846946,0.00504344,2978.2,2977.5,4.345e-05]
[1766245847146,3.36,2978.6,2978.1,2.67720495]
[1766245847645,3.36,2978.6,2977.8,3.36]
[1766245847849,3.36418582,2978.6,2978.1,0.00289509]
[1766245849047,2.67720495,2978.2,2977.5,3.36004345]
[1766245849241,6.03720495,2978.2,2977.5,3.36004345]
[1766245849751,3.36,2978.2,2977.5,3.36004345]
[1766245850046,3.36,2978.2,2977.5,3.36257874]
[1766245851548,6.03720495,2978.2,2977.5,3.36257874]
[1766245855553,3.36,2978.2,2977.5,3.36257874]
[1766245857056,3.359,2978.1,2977.5,3.36257874]
[1766245862059,6.03353394,2978.1,2977.5,2.46547874]
[1766245862261,2.67537808,2977.9,2977.2,3.359]
[1766245862459,2.67537808,2977.9,2976.4,3.10491478]
[1766245862460,6.296,2977.8,2976.9,3.359]
[1766245862758,6.296,2977.8,2976.8,3.359]
[1766245863148,6.296,2977.8,2977.0,0.00504345]
[1766245863352,6.296,2977.8,2977.0,0.00754071]
[1766245874366,3.359,2977.7,2977.0,0.00754071]
[1766245879567,6.03437808,2977.7,2976.8,3.359]
[1766245880678,0.00504345,2977.5,2977.0,0.00504345]
[1766245880882,3.359,2977.4,2977.0,4.345e-05]
[1766245881177,3.359,2977.4,2976.8,3.36154436]
[1766245881775,8.97137808,2977.4,2976.8,0.00254436]
[1766245881976,2.67537808,2977.1,2976.8,0.00504345]
[1766245882179,3.359,2977.0,2976.5,0.70044345]
[1766245882878,3.359,2977.0,2976.5,0.70403935]
[1766245883070,3.359,2977.0,2976.5,0.7090828]
[1766245887790,3.359,2977.0,2976.2,3.359]
[1766245888677,3.359,2977.0,2976.3,0.00504345]
[1766245895488,6.03437808,2977.0,2976.3,0.00504345]
[1766245895693,6.03437808,2977.0,2976.2,3.36231158]
[1766245895895,6.03437808,2977.0,2976.2,1.14791158]
[1766245896597,6.03437808,2977.0,2976.3,0.00504345]
[1766245898394,6.03604723,2977.0,2976.3,0.00504345]
[1766245905298,3.359,2977.0,2976.3,0.00504345]
[1766245905900,6.297,2976.9,2976.3,0.00504345]
[1766245906400,2.85009068,2977.5,2976.3,0.00504345]
[1766245906596,14.697,2977.4,2976.3,0.00504345]
[1766245907406,2.937,2977.3,2976.3,0.00504345]
[1766245907602,3.36,2977.2,2976.3,0.00504345]
[1766245908606,6.03704723,2977.2,2976.3,0.00504345]
[1766245908792,2.67704723,2976.9,2976.2,0.00331158]
[1766245909001,6.297,2976.8,2976.2,0.00331158]
[1766245909198,6.297,2976.8,2976.0,1.765]
[1766245909804,6.297,2976.8,2976.1,0.0033189]
[1766245910106,6.297,2976.8,2976.1,0.00655836]
[1766245917411,8.97402366,2976.8,2976.1,0.00655836]
[1766245921214,6.297,2976.8,2976.1,0.00655836]
[1766245936730,2.67678181,2977.2,2976.1,0.00655836]
[1766245936924,4.645,2977.1,2976.1,0.00655836]
[1766245952637,2.67678181,2977.0,2976.0,1.765]
[1766245953537,2.67678181,2977.0,2976.0,1.76806935]
[1766245955733,2.936,2976.9,2976.0,1.76806935]
[1766245955935,6.296,2976.9,2976.0,1.76806935]
[1766245957439,6.296,2976.9,2976.0,4.44485116]
[1766245957737,2.67678181,2977.2,2976.0,4.44485116]
[1766245957944,6.296,2977.1,2976.0,4.44485116]
[1766245964045,2.936,2977.0,2976.2,2.67678181]
[1766245964252,6.296,2977.0,2976.2,2.67678181]
[1766245965252,6.296,2977.0,2976.0,4.44485116]
[1766245968261,6.296,2977.0,2976.2,2.67678181]
[1766245968557,6.296,2977.0,2976.2,6.03678181]
[1766245969749,2.67678181,2977.2,2976.2,3.36]
[1766245970060,4.696,2977.1,2976.2,3.36]
[1766245986574,2.67623814,2977.0,2976.2,2.2274]
[1766245986766,2.67623814,2977.0,2976.2,1.6418]
[1766245987073,2.67623814,2977.0,2976.0,1.76806935]
[1766245989076,4.696,2977.1,2976.0,1.76806935]
[1766245989874,13.097,2977.1,2976.0,1.76806935]
[1766246005789,2.67623814,2977.2,2976.0,1.76806935]
[1766246005983,6.296,2977.1,2976.0,1.76806935]
[1766246007192,2.67658781,2977.3,2976.0,1.76806935]
[1766246007393,14.697,2977.2,2976.0,1.76806935]
[1766246008996,2.84963126,2977.5,2976.0,1.76806935]
[1766246009293,14.697,2977.4,2976.0,1.76806935]
[1766246015203,14.697,2977.4,2976.1,3.36]
[1766246017707,2.84963126,2977.5,2976.1,3.36]
[1766246017898,11.344,2977.3,2976.1,3.36]
[1766246018099,6.303,2977.2,2976.1,3.36]
[1766246019508,2.84963126,2977.5,2976.1,3.36]
[1766246019702,14.704,2977.4,2976.1,3.36]
[1766246022116,2.84963126,2977.5,2976.1,3.36]
[1766246022410,12.56,2977.4,2976.1,3.36]
[1766246023209,2.943,2977.3,2976.1,3.36]
[1766246023408,6.303,2977.3,2976.1,3.36]
[1766246033218,6.303,2977.3,2976.2,2.67658781]
[1766246039025,0.00504345,2977.5,2976.2,2.67658781]
[1766246039214,6.302,2977.4,2976.2,2.67658781]
[1766246039415,6.302,2977.4,2976.4,2.67566017]
[1766246040820,0.00504345,2977.5,2976.4,2.67566017]
[1766246041020,2.942,2977.3,2976.4,2.67566017]
[1766246042826,2.942,2977.3,2976.4,6.03566017]
[1766246043227,2.942,2977.3,2976.4,6.03568227]
[1766246044629,0.00504345,2977.5,2976.6,2.67568227]
[1766246044821,3.573,2977.4,2976.8,2.67568227]
[1766246047432,0.00504345,2977.5,2976.8,2.67568227]
[1766246047626,0.00504345,2977.5,2977.2,2.67568227]
[1766246047826,0.00504345,2977.5,2977.0,2.67568227]
[1766246048133,0.00504345,2977.5,2976.7,3.36]
[1766246048134,3.36,2977.4,2976.8,2.67568227]
[1766246055841,3.36,2977.4,2977.0,2.67568227]
[1766246056238,3.36,2977.4,2976.7,3.36]
[1766246056435,3.36,2977.4,2976.8,2.67568227]
[1766246056944,0.00504345,2977.5,2976.8,2.67568227]
[1766246057144,3.36,2977.4,2976.8,2.67568227]
[1766246062049,0.00504345,2977.5,2976.8,2.67568227]
[1766246062250,3.36404345,2977.5,2976.8,2.67568227]
[1766246064753,0.00504345,2977.5,2976.8,2.67568227]
[1766246064953,3.36404345,2977.5,2976.8,2.67568227]
[1766246076168,6.03972572,2977.5,2976.7,3.36]
[1766246076364,2.67568227,2977.3,2976.4,3.359]
[1766246076565,3.359,2977.2,2976.4,3.359]
[1766246076765,3.359,2977.2,2976.1,2.67568227]
[1766246076766,2.67568227,2977.1,2976.1,2.67568227]
[1766246076966,2.67568227,2977.1,2976.2,3.359]
[1766246077166,6.3,2977.2,2976.2,3.359]
[1766246078571,6.3,2977.2,2976.3,2.67568227]
[1766246078876,6.3,2977.2,2976.5,2.67568227]
[1766246079770,6.3,2977.2,2976.5,2.67560652]
[1766246081671,6.3,2977.2,2976.3,2.67560652]
[1766246083477,0.00504345,2977.5,2976.2,3.359]
[1766246083676,3.548,2977.4,2976.3,2.67560652]
[1766246086374,6.22360652,2977.4,2976.3,2.67560652]
[1766246090682,6.22360652,2977.4,2976.2,3.359]
[1766246092984,6.22360652,2977.4,2976.3,2.67560652]
[1766246094485,6.22360652,2977.4,2976.2,3.359]
[1766246094679,6.22360652,2977.4,2976.3,2.67560652]
[1766246097885,2.67560652,2977.2,2976.2,3.359]
[1766246098187,3.36,2977.1,2976.2,3.359]
[1766246099886,2.67560652,2977.2,2976.2,3.359]
[1766246100183,3.36,2977.1,2976.2,3.359]
[1766246101189,3.36,2977.1,2976.2,6.03460652]
[1766246101387,3.36,2977.1,2976.2,3.359]
[1766246102090,0.00504345,2977.5,2976.2,3.359]
[1766246102293,3.36,2977.4,2976.3,2.67600291]
[1766246104292,3.36,2977.4,2976.2,3.359]
[1766246115099,2.67600291,2977.2,2976.2,3.359]
[1766246115302,3.36,2977.1,2976.2,3.359]
[1766246136519,3.36,2977.0,2976.2,3.359]
[1766246141326,3.36,2976.9,2976.2,3.359]
[1766246162938,0.00504345,2977.5,2976.2,3.359]